Cogmind - Beta 16.1 @@@ ROGUE MODE // 2026.03.27 @ 21:50:07 Player: FL-IST Result: Destroyed by UK-RJB(R) with Subdweller Beam Cannon Performance ------------- Evolutions (0) 0 Regions Visited (2) 400 Robots Destroyed (32) 160 Value Destroyed (782) 782 Prototype IDs (13) 260 Alien Tech Used (0) 0 Bonus (0) 0 TOTAL SCORE: 1602 Bonus ------- None Cogmind --------- Core Integrity 0/250 Matter 292/300 Energy 59/200 System Corruption 0% Temperature Hot (226) Movement Treading (480) Ox4 Location -10/Subcaves Parts ------- > --- POWER (1) -------- Subdweller Power Source > --- PROPULSION (2) --- Light Treads > --- UTILITY (2) ------ Huge Storage Unit > --- WEAPON (2) ------- Subdweller Beam Cannon Light Assault Rifle > --- INVENTORY (25) --- Seismic Detector Scrap Shield Makeshift System Shield Makeshift System Shield Light Assault Rifle Grenade Launcher Subdweller Shrapnel Launcher Multitool SUBCON Basin (Full) Peak State ------------ > --- POWER ------------ Ion Engine > --- PROPULSION ------- Light Treads Spiked Treads > --- UTILITY ---------- Huge Storage Unit Seismic Detector > --- WEAPON ----------- Subdweller Beam Cannon Battle Rifle > --- INVENTORY -------- Propulsion Shielding Scrap Shield Makeshift System Shield Makeshift System Shield Light Assault Rifle Light Assault Rifle Grenade Launcher Subdweller Shrapnel Launcher Multitool SUBCON Basin [Rating: 30] Favorites ----------- Power Ion Engine Engine Ion Engine Propulsion Light Treads Treads Light Treads Wheel Compact Wheel Utility Huge Storage Unit Device Seismic Detector Storage Huge Storage Unit Protection Propulsion Shielding Weapon Assault Rifle Energy Cannon Subdweller Beam Cannon Ballistic Gun Assault Rifle Launcher Grenade Launcher Build | -11 -10 -10 ------- Run | Yrd Mat Sub Slots Evolved . | . . . Power . | . . . Propulsion . | . . . Utility . | . . . Weapon . | . . . Parts Attached 23 | 7 5 11 Power 3 | 1 1 1 Engine 3 | 1 1 1 Core . | . . . Reactor . | . . . Propulsion 6 | 2 . 4 Treads 5 | 1 . 4 Leg . | . . . Wheel 1 | 1 . . Hover . | . . . Flight . | . . . Utility 6 | 2 2 2 Device 3 | 1 1 1 Storage 2 | 1 1 . Processor . | . . . Hackware . | . . . Protection 1 | . . 1 Artifact . | . . . Weapon 8 | 2 2 4 Energy Gun . | . . . Energy Cannon 2 | . . 2 Ballistic Gun 5 | 2 1 2 Ballistic Cannon . | . . . Launcher 1 | . 1 . Special Weapon . | . . . Impact Weapon . | . . . Slashing Weapon . | . . . Piercing Weapon . | . . . Special Melee Weapon . | . . . Unidentified Prototypes . | . . . Parts Lost 7 | . 1 6 Power 2 | . 1 1 Propulsion 1 | . . 1 Utility 2 | . . 2 Weapon 2 | . . 2 Highest Loss Streak 3 | . 1 3 To Critical Strikes . | . . . Average Backups 11 | 1 9 11 Power . | . 1 . Propulsion 2 | . 2 2 Utility 4 | . 3 4 Weapon 3 | . 2 4 Tool/Special . | . . . Unused Backups 11 | . . 11 Power 1 | . . 1 Propulsion 1 | . . 1 Utility 6 | . . 6 Weapon 2 | . . 2 Tool/Special 1 | . . 1 Average Slot Usage (%) 97 | . 99 96 Engine 13 | . 13 13 Treads 20 | . 14 23 Wheel 7 | . 14 4 Device 11 | . 14 10 Storage 14 | . 14 14 Energy Cannon 9 | . . 12 Ballistic Gun 18 | . 27 15 Peak Build Rating 30 | 7 8 30 Average Rating 15 | 5 7 18 On Entrance 5 | . 7 8 Avg Prop Armor Cover (%) 12 | 14 12 12 Naked Turns . | . . . Heaviest Build 101 | 12 90 101 Greatest Support 40 | 20 16 40 Greatest Overweight (x) 5 | . 5 5 Average Overweight (x) 3 | . 4 3 Largest Inventory Capacity 25 | 8 25 25 Average Capacity 24 | 7 23 25 Most Carried 25 | 4 13 25 Average Carried 16 | 1 9 19 Final Capacity 25 | 8 25 25 Final Carried 24 | 4 13 24 Class Distribution -------------------- 100% | Mutant Dominant Class ---------------- Mutant | -10/Materials Mutant | -10/Subcaves Resources | -11 -10 -10 ----------- Run | Yrd Mat Sub Matter Collected 923 | 330 301 292 Remotely . | . . . Salvage Created 1229 | 153 679 397 Parts 74 | 13 35 26 Haulers Intercepted 2 | . 2 . Recyclers Shooed 2 | 1 1 . Parts Field Recycled . | . . . Retrieved Matter . | . . . Parts Self-Destructed 17 | . . 17 Prevented . | . . . Parts Restored . | . . . Kills | -11 -10 -10 ------- Run | Yrd Mat Sub Combat Hostiles Destroyed 23 | . 11 12 Guns 15 | . 11 4 Cannons 7 | . . 7 Classes Destroyed 8 | 2 4 2 Tunneler 3 | 3 . . Hauler 2 | . 2 . Recycler 2 | 1 1 . Operator 1 | . 1 . Watcher 1 | . 1 . Swarmer 6 | . . 6 Grunt 11 | . 11 . Subdweller 6 | . . 6 Best Kill Streak 4 | 3 4 3 Combat Bots Only 4 | . 4 3 Max Kills in Single Turn 1 | 1 1 1 Gunslinging . | . . . Exploded . | . . . Melee . | . . . Uniques/NPCs Destroyed . | . . . Combat | -11 -10 -10 -------- Run | Yrd Mat Sub Hostile Shots Fired 111 | . 37 74 Missed 28 | . 11 17 Hits 83 | . 26 57 Projectile 83 | . 26 57 Critical Strikes 1 | . . 1 Damage Taken 1236 | . 320 916 Core 258 | . 78 180 Absorbed by Shields . | . . . Redirected to Shielding 26 | . . 26 Regen/Repaired (Parts) 99 | . 99 . Core Remaining (%) 100 | 100 . . Volleys Fired 101 | 15 43 43 Largest 2 | 2 2 2 Hottest 160 | 40 40 160 Shots Fired 199 | 30 85 84 Gun 155 | 30 84 41 Cannon 43 | . . 43 Launcher 1 | . 1 . Special . | . . . Kinetic 155 | 30 84 41 Thermal 43 | . . 43 Explosive 1 | . 1 . Electromagnetic . | . . . Robot Hit Streak 23 | 5 16 23 Robot Miss Streak 4 | 3 3 4 Penetration Max . | . . . Secondary Targets 2 | . 1 1 Max Gunslinging Chain 1 | . 1 1 Shots Hit Robots 128 | 18 57 53 Core Hits 49 | 6 29 14 Critical Kills 2 | . 1 1 Critical Parts Destroyed . | . . . Critical Strikes 2 | . 1 1 Meltdown 1 | . . 1 Destroy 1 | . 1 . Melee Attacks . | . . . Impact . | . . . Slashing . | . . . Piercing . | . . . Sneak Attacks . | . . . Combat Hostiles . | . . . Follow-up Attacks . | . . . Damage Inflicted 2061 | 217 760 1084 Guns 1342 | 217 760 365 Cannons 704 | . . 704 Explosions . | . . . Melee . | . . . Ramming 15 | . . 15 Kinetic 1342 | 217 760 365 Thermal 704 | . . 704 Explosive . | . . . Electromagnetic . | . . . Impact . | . . . Slashing . | . . . Piercing . | . . . Highest Corruption . | . . . Average Corruption . | . . . Corruption Purged . | . . . Corruption Blocked . | . . . Overload Shots . | . . . Overflow Damage 20 | . . 20 Projectiles 20 | . . 20 Explosions . | . . . Melee . | . . . Knockbacks . | . . . Impact . | . . . Kinetic . | . . . Secondary . | . . . Self-Inflicted Damage . | . . . Shots . | . . . Rammed 1 | . . 1 Targets Rammed 1 | . . 1 Kicked . | . . . Crushed . | . . . Highest Temperature 229 | . 2 229 Average Temperature 42 | . 2 45 Received Heat Transfer 635 | . 180 455 Siege Activations . | . . . Martial Activations . | . . . Shielding Activations . | . . . Robots Disrupted . | . . . Combat Hostiles . | . . . Robots Corrupted . | . . . Combat Hostiles . | . . . Parts Fried . | . . . Impact Corruptions . | . . . Robots Melted 1 | . . 1 Combat Hostiles 1 | . . 1 Parts Melted 3 | . . 3 Heat Transferred 925 | . . 925 Parts Sabotaged . | . . . Parts Stolen . | . . . Parts Stripped . | . . . Power Chain Reactions . | . . . Alert | -11 -10 -10 ------- Run | Yrd Mat Sub Maximum Alert Level 1 | . 1 . Low Security (%) 99 | 100 99 . Level 1 . | . . . Level 2 . | . . . Level 3 . | . . . Level 4 . | . . . Level 5 . | . . . High Security . | . . . Max Security . | . . . Peak Influence 201 | 15 201 . Initial . | . . . Average 56 | 2 61 . Influence Increases 561 | 20 396 145 Destroy 0b10 Robot/C 340 | . 220 120 Destroy 0b10 Robot/NC 45 | 20 25 . Destroy Leader 76 | . 66 10 Successful Hack 17 | . 17 . Select Force Hacks 60 | . 60 . Destroy Structure 8 | . 8 . Lose Combat Pursuer 15 | . . 15 Influence Decreases 508 | 20 273 215 Entered New Map 60 | . . 60 Time Decay 418 | 20 263 135 Lost Part 30 | . 10 20 Squads Dispatched 3 | . 3 . Investigation 2 | . 2 . Extermination . | . . . Reinforcement 1 | . 1 . Assault . | . . . Garrison . | . . . Intercept . | . . . Searches Triggered . | . . . Construction Impeded . | . . . Haulers Reinforced . | . . . Active Scanning Responses . | . . . Cargo Convoy Interrupts . | . . . Stealth | -11 -10 -10 --------- Run | Yrd Mat Sub Distress Signals 1 | . 1 . Communications Jammed . | . . . Distress Signals . | . . . Times Spotted 31 | . 18 13 Peak Tracking Total 4 | . 4 3 Tactical Retreats 1 | . . 1 Traps | -11 -10 -10 ------- Run | Yrd Mat Sub Traps Triggered . | . . . Indirectly . | . . . Trap Hack Attempts . | . . . Triggered . | . . . Disarmed . | . . . Reprogrammed . | . . . Reused . | . . . Traps Extracted . | . . . Installed . | . . . Triggered . | . . . Machines | -11 -10 -10 ---------- Run | Yrd Mat Sub Machines Disabled . | . . . Max in Single Turn . | . . . Machines Repaired . | . . . Machines Dismantled . | . . . Machines Sabotaged . | . . . Overloaded Fab Kills . | . . . Hacking | -11 -10 -10 --------- Run | Yrd Mat Sub Machines Accessed 13 | . 10 3 Terminals 7 | . 7 . Fabricators . | . . . Repair Stations 1 | . 1 . Recycling Units 2 | . 2 . Scanalyzers . | . . . Garrison Access . | . . . Total Hacks 33 | . 29 4 Successful 22 | . 18 4 Failed 11 | . 11 . Catastrophic . | . . . Database Lockouts . | . . . Manual 22 | . 22 . Terminals 22 | . 22 . Fabricators . | . . . Repair Stations 3 | . 3 . Recycling Units 4 | . 4 . Scanalyzers . | . . . Garrison Access . | . . . Terminal Hacks 7 | . 3 4 Record 1 | . . 1 Robot Analysis 1 | . 1 . Open Door 1 | . . 1 Locate Traps 2 | . 2 . Proto ID Catalog 1 | . . 1 Release Object 1 | . . 1 Fabricator Hacks . | . . . Repair Station Hacks 2 | . 2 . Scan Component 1 | . 1 . Repair 1 | . 1 . Recycling Unit Hacks 2 | . 2 . Retrieve Components 2 | . 2 . Scanalyzer . | . . . Garrison Access Hacks . | . . . Unauthorized Hacks 11 | . 11 . Terminals 9 | . 9 . Botnet 4 | . 4 . Skim 5 | . 5 . Fabricators . | . . . Repair Stations . | . . . Recycling Units 2 | . 2 . Tunnel 2 | . 2 . Scanalyzers . | . . . Garrison Access . | . . . Data Cores Recovered . | . . . Used . | . . . Hacking Detections 7 | . 7 . Full Trace Events 1 | . 1 . Feedback Events . | . . . Feedback Blocked . | . . . Robot Schematics Acquired . | . . . Robots Built . | . . . Authchips . | . . . Time . | . . . Total Robot Build Rating . | . . . Part Schematics Acquired . | . . . Parts Built . | . . . Authchips . | . . . Time . | . . . Total Part Build Rating . | . . . Part Studies Acquired . | . . . Parts Repaired 1 | . 1 . Time 26 | . 26 . Parts Recycled . | . . . Recycled Matter . | . . . Retrieved Matter . | . . . Retrieved Components 13 | . 13 . Parts Scanalyzed . | . . . Part Schematics Acquired . | . . . Parts Damaged . | . . . Bothacking | -11 -10 -10 ------------ Run | Yrd Mat Sub Used RIF Installer . | . . . Robots Hacked . | . . . Non-combat . | . . . Combat . | . . . Robot Hacks Applied . | . . . Relay Couplers Released . | . . . Fabnet Peak Effective % . | . . . Robots Rewired . | . . . Allies Hacked . | . . . Hacks Repelled . | . . . Allies | -11 -10 -10 -------- Run | Yrd Mat Sub Total Allies . | . . . Largest Group . | . . . Highest-Rated Group . | . . . Highest-Rated Ally . | . . . Total Orders . | . . . Ally Attacks . | . . . Total Damage . | . . . Kills . | . . . Allies Corrupted . | . . . Allies Melted . | . . . Intel | -11 -10 -10 ------- Run | Yrd Mat Sub Active Infowar (turns) 4718 | 55 1586 3077 Seismic 4718 | 55 1586 3077 Robot Analysis Total 1 | . 1 . Derelict Logs Recovered . | . . . Drone Launches . | . . . Drone Recoveries . | . . . Exploration | -11 -10 -10 ------------- Run | Yrd Mat Sub Turns Passed 5749 | 129 1586 4034 Spaces Moved 1931 | 72 685 1174 Core 2 | 2 . . Treads 651 | 3 . 648 Legs . | . . . Wheels 1278 | 67 685 526 Hover . | . . . Flight . | . . . Fastest Speed 50 | 50 100 175 Average Speed 216 | 101 161 255 Slowest Speed 340 | 160 175 340 Overloaded Moves . | . . . Propulsion Burnouts . | . . . Robots Hopped . | . . . Potential Cave-ins . | . . . Cave-ins Triggered . | . . . Exploration Rate (%) 51 | 4 90 60 Regions Visited 2 Branch Regions 1 Pre-discovered Areas 4 | . 3 1 Known Exits Taken 1 | . 1 . Unknown Exits Taken 1 | 1 . . Scrap Searched 3 | . . 3 Spaces Dug 2 | . . 2 Terrain Destroyed 12 | . 6 6 Melee . | . . . Projectile 6 | . . 6 AOE 6 | . 6 . Terrain Rammed . | . . . Walls Destroyed . | . . . Machines Disabled . | . . . Actions | -11 -10 -10 --------- Run | Yrd Mat Sub Total 3308 | 97 1079 2132 Wait 1203 | . 333 870 Move 1929 | 71 684 1174 Hop . | . . . Pick Up 23 | 4 10 9 Fast Attach 9 | 7 1 1 Attach 5 | . 2 3 Detach . | . . . Swap 19 | . 4 15 Drop 17 | . 2 15 Fire 101 | 15 43 43 Melee . | . . . Ram . | . . . Kick . | . . . Crush 1 | . . 1 Escape Stasis . | . . . Rewire 1 | . . 1 Trap . | . . . Miscellaneous . | . . . Route ------- -11/Scrapyard -10/Materials (discovered 5 exits: *Mat x3 / *Min / *Sub) -10/Subcaves (discovered 2 exits: *Mat / Rec) History --------- Turn | Location | Event 46 | -11/Scrapyard | Discovered new exit (range 15) 130 | -11/Scrapyard | Entered Materials 307 | -10/Materials | Build established: Mutant 391 | -10/Materials | Discovered new exit (range 16) 783 | -10/Materials | Discovered new exit (range 15) 1123 | -10/Materials | Discovered new exit (range 13) 1229 | -10/Materials | Learned 4 Subcaves zone layouts 1303 | -10/Materials | Learned location of 1 exit from Storage 1368 | -10/Materials | Learned location of 1 exit from Storage 1394 | -10/Materials | Discovered new exit (range 5) 1452 | -10/Materials | Repaired Assault Rifle 1466 | -10/Materials | Loaded intel: 9 trap records 1523 | -10/Materials | Identified exit to Subcaves 1554 | -10/Materials | Learned Storage stockpile data 1595 | -10/Materials | Identified exit to Materials 1595 | -10/Materials | Identified exit to Mines 1645 | -10/Materials | Learned location of 2 exits from Subcaves 1716 | -10/Materials | Entered Subcaves 1717 | -10/Subcaves | Approached by a straggling Scientist 1717 | -10/Subcaves | Identified exit to Materials 1717 | -10/Subcaves | Identified exit to Recycling 2095 | -10/Subcaves | Curiously followed by a Cobbler waking with a query about "LVR3C" 2700 | -10/Subcaves | Shifting Twisted Machinery released Sub. Laser 3198 | -10/Subcaves | Core integrity fell below 50% 3384 | -10/Subcaves | A swath of the cavern ceiling suddenly collapsed 3520 | -10/Subcaves | Learned location of Zion (-7) 3520 | -10/Subcaves | Met a Zionite searching for "candidates" 3808 | -10/Subcaves | Found SUBCON Basin 3872 | -10/Subcaves | Shifting Twisted Machinery released Sub. Shrapnel Launcher 4909 | -10/Subcaves | Lost 3 parts (1p1u1w) 5357 | -10/Subcaves | Visited 4L-MR0's lab 5733 | -10/Subcaves | Core integrity fell below 20% 5750 | -10/Subcaves | Destroyed by UK-RJB(R) with Subdweller Beam Cannon Last Messages --------------- 05603_ WG-UKA(O) collects matter. 05705_ S-10 Pest springs to life. 05708_ S-10 Pest destroyed. 05712_ Flight Unit fries itself beyond repair. 05712_ Subatomizers dissect the Lgt. Assault Rifle. 05716_ Flight Unit fries itself beyond repair. 05717_ Destroyed Flight Unit. 05717_ S-10 Pest destroyed. 05724_ Lgt. Assault Rifle fries itself beyond repair. 05730_ Destroyed Flight Unit. 05733_ S-10 Pest destroyed. 05738_ Subatomizers dissect the Lgt. Assault Rifle. 05740_ Sub. Beam Cannon destroyed. 05740_ WG-UKA(O) collects matter. 05742_ Critical hit (Meltdown: +260). 05744_ WG-UKA(O) collects matter. 05746_ Flight Unit fries itself beyond repair. 05747_ WG-UKA(O) puts together Sub. Shrapnel Launcher. 05750_ Subatomizers dissect the Lgt. Assault Rifle. 05750_ Lgt. Treads destroyed. Map ----- +----------------------------------------------------+ | ## ##??????????????????????????????????? | | ## ### #??????????????????????????????????? | | ###### ##?????????????????????????????????? | | #????## ##????????????????????????????????? | | ??????## #????????????????????????????????? | | ???????### #????????????????????????????????? | | ?????????### ##???????????????????????????????? | | ???????????## #???????????????????????????????? | | ?????????#### #???????????????????????????????? | | ?????????# #?????? ???????????????????????? | | ?????????## ##?????# ??????????????????????? | | ??????????# ##??????# ?????????????????????? | | ????????### ##???????? #???????????????????? | | ???????## #??????????# "???????????????????? | | ??????## #?????>????# "#??????????????????? | | ??????# ####"?????????# ""###??? ???????? | | ??????# ###??#" ???????# " #??? #?????? | | ??????# ###?##" ??????# ### #??? #?????? | | ??????# #?#; ?????????## #??? ##????? | | ??????# ##?# ?????#### ##?? ##???? | | ?????## ##?? ???## ##? ##??? | | ?????# #???# s#### #?# #??? | | ?????## ## #???# % ;# R ### #??? | | ??????#### #???# [ O] ### ## #??? | | ????????# #???#### ;#?# #??? | | ????????# ##????## @#??#### #???? | | ????????# ##???# ##????## ###???? | | ????????# #???## #????## #?????? | | ????????# ####### ##??## #?????? | | ????????# ## ### #### #?????? | | ????????# ## #?????? | | ????????# ### * ###???? | | ????????# ### % #???? | | ????????## ## ## #??? | | ?????????## ## ##??##??? | | ?????????## ### #???#???? | | ?????##### #?# ### ##??? | | ##???# ## %% #??? | | #### ## #??? | | # ## ##### #??? | | # ### ##??############## ###??? | | ### #### ##??????????????# ## ##????? | | ??# ####### #??????????????# # #?????? | | ??# ###???# ##??????????????# ### #?????? | | ??# ##?????# ###???????????????# ##??##?????? | | ??###??????#######?????????????????# ##????????? | | ??????????????????????????????????## #????????? | | ??????????????????????????????????# ##???????? | | ??????????????????????????????????## ##??????? | | ???????????????????????????????????## #??????? | +----------------------------------------------------+ Best States ------------- Heat Dissipation 25 Energy Generation 15 Energy Capacity 250 Matter Stores 300 Matter Capacity 300 Sight Range 16 Terrain Scan Density 10 Propulsion Shielding 33 Evasion (%) 40 Recoil Reduction 2 Item Schematics ----------------- None Robot Schematics ------------------ None Fabricated ------------ Nothing Repaired ---------- Assault Rifle | 1% | -10/Materials Studied --------- None Alien Tech Used ----------------- None Achievements -------------- None Challenges ------------ None Game ------ Seed InterdictionMeleeWeb Manual? 0 Play Time 00:21:22 Cumulative 360.0 hours Start 2026.03.27 @ 21:33:59 End 2026.03.27 @ 21:50:07 Sessions 1 Manual Loads 0 Difficulty Rogue Special Mode None Game No. 281 Rogue 281 Adventurer 0 Explorer 0 Win Type - Total 20 Types 11/0/7/2/0/0/0/0/0/0 Lore% 87 Gallery% 76 Achievement% 66 Wizard Run 0 Options --------- Layout 1 ASCII 0 Keyboard 0 Movement Numpad Keybinds 0 Fullscreen 1 Font 32/SmallcapsGlow Map View 77x35 Zoom Use 0% Tactical HUD 1 Map Filters NONE Filters NONE Steam 1 RUN: 2deed8ad-6d6f-4e5d-bfc4-6826d358f5a7